[Event "Julius Baer Generation Cup Prelims 2022"]
[Site "Online"]
[Date "2022.09.14"]
[Round "1.6"]
[White "Wojtaszek, Radoslaw"]
[Black "Le, Quang Liem"]
[Result "1/2-1/2"]
[ECO "E11"]
[WhiteElo "2696"]
[BlackElo "2728"]
[Annotator "ChessBase"]
[PlyCount "114"]
[EventDate "2022.09.12"]
[EventType "tourn"]
[EventCountry "NET"]
[SourceTitle "playchess.com"]
[Source "ChessBase"]
[SourceQuality "1"]
[TimeControl "900+10"]

1. d4 {[%emt 0:00:00]} d5 {[%emt 0:00:00]} 2. c4 {[%emt 0:00:06]} e6 {[%emt 0:00:02]} 3. Nf3 {[%emt 0:00:06]} Nf6 {[%emt 0:00:03]} 4. g3 {[%emt 0:00:01]} Bb4+ {[%emt 0:00:03]} 5. Bd2 {[%emt 0:00:02]} a5 {[%emt 0:00:01]} 6. Bg2 {[%emt 0:00:02]} O-O {[%emt 0:00:02]} 7. Qc2 {[%emt 0:00:05]} c5 {[%emt 0:00:02]} 8. cxd5 {[%emt 0:00:04]} cxd4 {[%emt 0:00:02]} 9. a3 {[%emt 0:00:02]} Bxd2+ {[%emt 0:00:22]} 10. Qxd2 {[%emt 0:00:01]} Qxd5 {[%emt 0:00:44]} 11. Qxd4 {[%emt 0:00:03]} Nc6 {[%emt 0:00:36]} 12. Qxd5 {[%emt 0:00:03]} Nxd5 {[%emt 0:00:02]} 13. Nbd2 {[%emt 0:00:02]} Rd8 {[%emt 0:01:44]} 14. O-O {[%emt 0:00:03]} b6 {[%emt 0:03:00]} 15. Rac1 {[%emt 0:00:11]} Bb7 {[%emt 0:00:02]} 16. Rfd1 {[%emt 0:01:17]} Rac8 {[%emt 0:00:51]} 17. Nc4 {[%emt 0:00:18]} b5 {[%emt 0:02:22]} 18. Nce5 {[%emt 0:00:09]} Nxe5 {[%emt 0:01:24]} 19. Nxe5 {[%emt 0:00:00]} Kf8 {[%emt 0:00:12]} 20. Nd3 {[%emt 0:00:50]} Ke7 {[%emt 0:00:19]} 21. Nc5 {[%emt 0:01:30]} Ba8 {[%emt 0:00:09]} 22. Nb3 {[%emt 0:00:14]} a4 {[%emt 0:00:05]} 23. Nd4 {[%emt 0:00:25]} b4 {[%emt 0:00:17]} 24. Rxc8 {[%emt 0:02:59]} Rxc8 {[%emt 0:00:00]} 25. axb4 {[%emt 0:00:02]} Nxb4 {[%emt 0:00:21]} 26. Bxa8 {[%emt 0:00:52]} Rxa8 {[%emt 0:00:00]} 27. Rc1 {[%emt 0:00:01]} Kf6 {[%emt 0:01:47]} 28. Rc4 {[%emt 0:00:15]} Rb8 {[%emt 0:00:04]} 29. f4 {[%emt 0:00:32]} g5 {[%emt 0:00:21]} 30. Nf3 {[%emt 0:00:24]} gxf4 {[%emt 0:00:55]} 31. Rxf4+ {[%emt 0:00:02]} Kg7 {[%emt 0:00:03]} 32. Ne5 {[%emt 0:00:34]} f5 {[%emt 0:00:40]} 33. Rc4 {[%emt 0:02:03]} Nd5 {[%emt 0:00:09]} 34. Nd3 {[%emt 0:00:44]} Nb6 {[%emt 0:01:48]} 35. Rb4 {[%emt 0:00:57]} Kf6 {[%emt 0:00:24]} 36. Kf2 {[%emt 0:00:12]} Ke7 {[%emt 0:00:56]} 37. Nc5 {[%emt 0:02:12]} Rc8 {[%emt 0:00:02]} 38. Nxa4 {[%emt 0:00:18]} Nxa4 {[%emt 0:00:00]} 39. Rxa4 {[%emt 0:00:01]} Rb8 {[%emt 0:00:01]} 40. b4 {[%emt 0:00:20]} Kf6 {[%emt 0:00:01]} 41. Kf3 {[%emt 0:00:10]} h5 {[%emt 0:00:09]} 42. e4 {[%emt 0:01:13]} Rb5 {[%emt 0:00:56]} 43. Kf4 {[%emt 0:00:22]} h4 {[%emt 0:00:21]} 44. gxh4 {[%emt 0:01:37]} fxe4 {[%emt 0:00:03]} 45. Kxe4 {[%emt 0:00:33]} Rh5 {[%emt 0:00:01]} 46. Kd4 {[%emt 0:00:14]} Rxh4+ {[%emt 0:00:04]} 47. Kc5 {[%emt 0:00:01]} Rh5+ {[%emt 0:00:10]} 48. Kc6 {[%emt 0:00:06]} Rxh2 {[%emt 0:00:03]} 49. b5 {[%emt 0:00:05]} Rc2+ {[%emt 0:00:03]} 50. Kd6 {[%emt 0:00:16]} Rb2 {[%emt 0:00:05]} 51. Kc5 {[%emt 0:00:08]} e5 {[%emt 0:00:35]} 52. b6 {[%emt 0:00:07]} Ke6 {[%emt 0:00:18]} 53. Rb4 {[%emt 0:00:29]} Rxb4 {[%emt 0:00:05]} 54. Kxb4 {[%emt 0:00:00]} Kd7 {[%emt 0:00:01]} 55. Kc5 {[%emt 0:00:21]} e4 {[%emt 0:00:02]} 56. Kd4 {[%emt 0:00:00]} Kc6 {[%emt 0:00:01]} 57. Kxe4 {[%emt 0:00:01]} Kxb6 {[%emt 0:00:00]} 1/2-1/2

[Event "Julius Baer Generation Cup Prelims 2022"]
[Site "Online"]
[Date "2022.09.14"]
[Round "3.5"]
[White "Wojtaszek, Radoslaw"]
[Black "Niemann, Hans Moke"]
[Result "1-0"]
[ECO "E11"]
[WhiteElo "2696"]
[BlackElo "2688"]
[Annotator "ChessBase"]
[PlyCount "69"]
[EventDate "2022.09.12"]
[EventType "tourn"]
[EventCountry "NET"]
[SourceTitle "playchess.com"]
[Source "ChessBase"]
[SourceQuality "1"]
[TimeControl "900+10"]

1. d4 {[%emt 0:00:00]} Nf6 {[%emt 0:00:00]} 2. c4 {[%emt 0:00:02]} e6 {[%emt 0:00:01]} 3. Nf3 {[%emt 0:00:01]} d5 {[%emt 0:00:01]} 4. g3 {[%emt 0:00:00]} Bb4+ {[%emt 0:00:08]} 5. Bd2 {[%emt 0:00:01]} Be7 {[%emt 0:00:01]} 6. Bg2 {[%emt 0:00:02]} O-O {[%emt 0:00:00]} 7. O-O {[%emt 0:00:01]} Nbd7 {[%emt 0:00:01]} 8. b4 {[%emt 0:00:01]} Ne4 {[%emt 0:00:04]} 9. Qb3 {[%emt 0:00:02]} Nb6 {[%emt 0:01:02]} 10. c5 {[%emt 0:01:57]} Nc4 {[%emt 0:00:03]} 11. Be1 {[%emt 0:00:16]} a5 {[%emt 0:00:05]} 12. Nbd2 {[%emt 0:01:38]} Nexd2 {[%emt 0:02:15]} 13. Nxd2 {[%emt 0:00:02]} b5 {[%emt 0:00:08]} 14. bxa5 {[%emt 0:03:26]} Rxa5 {[%emt 0:00:12]} 15. Nb1 {[%emt 0:00:11]} Ra7 {[%emt 0:01:04]} 16. Qxb5 {[%emt 0:00:03]} Ba6 {[%emt 0:00:17]} 17. Qb3 {[%emt 0:00:06]} e5 {[%emt 0:00:35]} 18. Bc3 {[%emt 0:01:11]} e4 {[%emt 0:00:04]} 19. e3 {[%emt 0:00:51]} Rb7 {[%emt 0:00:38]} 20. Qa4 {[%emt 0:00:36]} Bb5 {[%emt 0:00:10]} 21. Qc2 {[%emt 0:00:02]} f5 {[%emt 0:00:36]} 22. Re1 {[%emt 0:00:02]} g5 {[%emt 0:00:09]} 23. a4 {[%emt 0:00:08]} Ba6 {[%emt 0:00:15]} 24. Nd2 {[%emt 0:00:17]} f4 {[%emt 0:00:16]} 25. exf4 {[%emt 0:00:14]} Nxd2 {[%emt 0:00:57]} 26. Bxd2 {[%emt 0:00:03]} Bf6 {[%emt 0:00:12]} 27. Qc3 {[%emt 0:00:26]} Qb8 {[%emt 0:00:46]} 28. c6 {[%emt 0:01:22]} Rb2 {[%emt 0:02:09]} 29. fxg5 {[%emt 0:01:05]} Bxg5 {[%emt 0:00:05]} 30. Bxg5 {[%emt 0:00:50]} Rfxf2 {[%emt 0:00:03]} 31. Bh3 {[%emt 0:00:05]} Rxh2 {[%emt 0:00:12]} 32. Rab1 {[%emt 0:00:24]} Rxh3 {[%emt 0:01:04]} 33. Rxb2 {[%emt 0:00:02]} Qf8 {[%emt 0:00:22]} 34. Qe3 {[%emt 0:00:33]} Qf5 {[%emt 0:00:15]} 35. Qf4 {[%emt 0:00:24]} 1-0

[Event "Julius Baer Generation Cup Prelims 2022"]
[Site "Online"]
[Date "2022.09.14"]
[Round "5.4"]
[White "Wojtaszek, Radoslaw"]
[Black "Praggnanandhaa R"]
[Result "1/2-1/2"]
[ECO "D35"]
[WhiteElo "2696"]
[BlackElo "2676"]
[Annotator "TA"]
[PlyCount "92"]
[EventDate "2022.09.12"]
[EventType "tourn"]
[EventCountry "NET"]
[SourceTitle "playchess.com"]
[Source "ChessBase"]
[SourceQuality "1"]
[TimeControl "900+10"]

{[%evp 22,92,0,-5,0,0,0,-14,0,0,16,6,6,4,17,15,20,20,24,18,24,10,11,5,2,4,0,0,12,12,18,19,19,0,29,10,11,11,11,8,10,8,22,8,16,14,26,29,24,25,33,0,72,7,7,0,0,0,0,0,0,0,0,0,0,0,0,0,0,0,0,0,0]} 1. d4 {[%emt 0:00:00]} Nf6 {[%emt 0:00:00]} 2. c4 {[%emt 0:00:02]} e6 {[%emt 0:00:01]} 3. Nf3 {[%emt 0:00:01]} d5 {[%emt 0:00:01]} 4. cxd5 {[%emt 0:00:01]} exd5 {[%emt 0:00:02]} 5. Nc3 {[%emt 0:00:01]} c6 {[%emt 0:00:16]} 6. Bg5 {[%emt 0:00:02]} h6 {[%emt 0:00:25]} 7. Bh4 {[%emt 0:00:10]} Bf5 {[%emt 0:00:34]} 8. e3 {[%emt 0:01:06]} Nbd7 {[%emt 0:00:06]} 9. Bd3 {[%emt 0:00:04]} Bxd3 {[%emt 0:00:02]} 10. Qxd3 {[%emt 0:00:00]} Be7 {[%emt 0:00:02]} 11. O-O {[%emt 0:00:04]} O-O {[%emt 0:00:02]} 12. a3 {[%emt 0:00:17] CPLX 2.3 5 (h2-h3) (=5)} a5 {[%emt 0:00:08] CPLX 2.3 5 (Rf8-e8) (=5). D35: Queen's Gambit Declined: Exchange Variation.} 13. Qc2 {[%emt 0:00:01] BESTDEEP} Re8 {[%emt 0:01:09] CPLX 2.3 0 (Ra8-c8) (=3)} 14. Rab1 {[%emt 0:00:35] CPLX 2.3 14 (Bh4-g3) (=6)} Nb6 {[%emt 0:00:19] CPLX 2.3 14 (Be7-d6) (=6)} 15. Nd2 {[%emt 0:00:43] [#] CPLX 2.3 0 (Rf1-e1) (=5)} Nfd7 $146 {[%emt 0:05:04] CPLX 2.4 16 (Nf6-g4) (=9)} ({Predecessor:} 15... Ne4 16. Ncxe4 Bxh4 17. Nc5 Qc7 18. b4 axb4 19. axb4 Be7 20. Rfc1 Bd6 21. h3 Nc8 {0-1 (70) Checa,N (2508)-Sheng,J (2451) Chess.com INT 2019}) 16. Bxe7 {[%emt 0:01:52] CPLX 2.9} Qxe7 {[%emt 0:00:05] RECAPT 0 (Re8xe7) (=7)} 17. b4 {[%emt 0:00:01] BESTDEEP} axb4 {[%emt 0:01:04] CPLX 2.5 13 (Re8-b8) (=8)} 18. axb4 {[%emt 0:00:01] RECAPT} Nc8 {[%emt 0:00:05] CPLX 2.4 5 (Nd7-f6) (=8)} 19. b5 {[%emt 0:00:27] CPLX 2.3} Nd6 {[%emt 0:00:03] EASY} 20. bxc6 {[%emt 0:00:33] CPLX 2.6} bxc6 {[%emt 0:00:00] RECAPT} 21. Na4 {[%emt 0:01:32] CPLX 2.4 14 (Nc3-e2) (=3)} Ra6 {[%emt 0:02:01] Against Nb6. CPLX 2.5} 22. Nc5 {[%emt 0:00:16] CPLX 2.5 6 (Rf1-c1) (=4)} Nxc5 {[%emt 0:00:27] CPLX 2.9} 23. Qxc5 {[%emt 0:00:00] RECAPT} Rea8 {[%emt 0:01:07] BESTDEEP} 24. Rb6 {[%emt 0:01:00] CPLX 2.2 0 (Rb1-b2) (=3)} Rxb6 {[%emt 0:00:16] CPLX 2.4 12 (Qe7-c7) (=5)} 25. Qxb6 {[%emt 0:00:02] RECAPT} Qb7 {[%emt 0:00:17] CPLX 2.0 6 (Qe7-e8) (=5)} 26. Qxb7 {[%emt 0:00:35] CPLX 2.3} Nxb7 $11 {[%emt 0:00:02][%mdl 4096] Endgame KRN-KRN. RECAPT} 27. Rc1 {[%emt 0:01:18] CPLX 2.0 19 (h2-h3) (=4)} Ra6 {[%emt 0:00:14] CPLX 2.0 29 (Ra8-a2) (=6)} (27... Ra2 $5 {[%cal Ra2d2]} 28. Nf3 c5 $11) 28. Nf3 {[%emt 0:00:28] CPLX 2.0 19 (g2-g4) (=5)} c5 {[%emt 0:01:09] BESTDEEP} 29. dxc5 {[%emt 0:01:17] CPLX 2.0} Nxc5 {[%emt 0:00:04] RECAPT} 30. h4 {[%emt 0:00:24] CPLX 2.0 3 (h2-h3) (=4)} Ne6 {[%emt 0:00:23] CPLX 2.0 2 (Nc5-e4) (=5)} 31. Ne5 {[%emt 0:01:03] CPLX 2.0 2 (Rc1-b1) (=4)} Rd6 {[%emt 0:01:06] CPLX 2.0 14 (g7-g5) (=6)} 32. Ra1 {[%emt 0:02:11] CPLX 2.0 14 (h4-h5) (=5)} d4 {[%emt 0:01:55] CPLX 2.0 8 (f7-f6) (=6)} 33. Ra8+ {[%emt 0:00:08] EASY} Nf8 {[%emt 0:00:15] CPLX 2.0 12 (Ne6-d8) (=6)} 34. exd4 {[%emt 0:00:17] CPLX 2.0} Rxd4 {[%emt 0:00:04] RECAPT} 35. h5 {[%emt 0:00:19] CPLX 2.0} Rd6 {[%emt 0:00:15] BESTDEEP} 36. g4 {[%emt 0:01:04] CPLX 2.0 33 (Kg1-h2) (=5)} g5 {[%emt 0:00:28] [#] RELBLUND 72 (g7-g6) (=8)} (36... g6 $11) 37. hxg6 {[%emt 0:00:15] White is more active. RELBLUND 65 (Ne5-c4) (=7)} ({White should play} 37. Nc4 $1 $16 Rd4 38. Ne3) 37... fxg6 {[%emt 0:00:02] RECAPT. The position is equal.} 38. f4 {[%emt 0:00:11] CPLX 2.0 7 (f2-f3) (=7)} Rf6 {[%emt 0:00:18] CPLX 2.0} 39. Kh2 {[%emt 0:01:00] CPLX 2.0 0 (Ne5-d3) (=7)} Rxf4 {[%emt 0:00:08] EASY} 40. Nxg6 {[%emt 0:00:01] CPLX 2.0} Rf6 {[%emt 0:00:07] BESTDEEP} 41. Nxf8 {[%emt 0:00:06] CPLX 2.0 0 (Ng6-h4) (=7)} Rxf8 {[%emt 0:00:01] RECAPT} 42. Rxf8+ {[%emt 0:00:01] CPLX 2.0 0 (Ra8-a7) (=6)} Kxf8 {[%emt 0:00:00] KP-KP. RECAPT} 43. Kg3 {[%emt 0:00:01] CPLX 2.0 0 (Kh2-g1) (=6)} Kg7 {[%emt 0:00:00] CPLX 2.0} 44. Kf4 {[%emt 0:00:03] CPLX 2.0 0 (Kg3-g2) (=6)} Kg6 {[%emt 0:00:01]} 45. Kf3 {[%emt 0:00:01]} h5 {[%emt 0:00:01]} 46. gxh5+ {[%emt 0:00:00] CPLX 2.0} Kxh5 {[%emt 0:00:00] Weighted Error Value: White=0.08 (flawless) /Black=0.10 (very precise)} 1/2-1/2

[Event "Julius Baer Generation Cup Prelims 2022"]
[Site "Online"]
[Date "2022.09.14"]
[Round "7.3"]
[White "Wojtaszek, Radoslaw"]
[Black "Ivanchuk, Vasyl"]
[Result "1-0"]
[ECO "D52"]
[WhiteElo "2696"]
[BlackElo "2678"]
[Annotator "TA"]
[PlyCount "91"]
[EventDate "2022.09.12"]
[EventType "tourn"]
[EventCountry "NET"]
[SourceTitle "playchess.com"]
[Source "ChessBase"]
[SourceQuality "1"]
[TimeControl "900+10"]

{[%evp 17,91,19,26,18,22,29,23,31,20,8,20,14,16,18,14,16,26,34,29,14,69,28,17,18,22,22,188,195,201,217,187,188,206,72,86,22,107,87,118,43,87,14,47,28,74,31,49,37,43,44,58,37,59,8,8,8,8,0,0,0,0,0,0,0,29963,29963,6299,4706,29993,29994,29994,29992,29997,29998,29998,29999]} 1. d4 {[%emt 0:00:00]} Nf6 {[%emt 0:00:00]} 2. c4 {[%emt 0:00:09]} e6 {[%emt 0:00:04]} 3. Nf3 {[%emt 0:00:02]} d5 {[%emt 0:00:01]} 4. Nc3 {[%emt 0:00:00]} c6 {[%emt 0:00:24]} 5. Bg5 {[%emt 0:00:11]} Nbd7 {[%emt 0:00:06]} 6. e3 {[%emt 0:00:05][%cal Be2e3,Be3d4][%mdl 32]} Qa5 {[%emt 0:00:01]} 7. Nd2 {[%emt 0:00:08]} Bb4 {[%emt 0:00:39]} 8. Qc2 {[%emt 0:00:04]} O-O {[%emt 0:00:17]} 9. Be2 {[%emt 0:00:17]} c5 {[%emt 0:00:01] CPLX 2.9 7 (d5xc4) (=7)} 10. Bf4 {[%emt 0:00:57] BESTDEEP. D52: Queen's Gambit Declined: Cambridge Springs Variation.} cxd4 {[%emt 0:01:43] CPLX 2.9 4 (Rf8-e8) (=6)} 11. exd4 {[%emt 0:00:16] RECAPT} Re8 {[%emt 0:00:45] BESTDEEP} 12. O-O {[%emt 0:00:15] CPLX 2.8. White has an edge.} Bxc3 {[%emt 0:00:03] BESTDEEP} 13. bxc3 {[%emt 0:00:06] RECAPT} e5 {[%emt 0:00:01] EASY} 14. Be3 {[%emt 0:00:11] CPLX 3.1} b6 {[%emt 0:01:28] CPLX 2.8} 15. a4 {[%emt 0:00:23]} exd4 $1 {[%emt 0:00:07] DEEPSTRONG} 16. cxd4 {[%emt 0:00:15] RECAPT} Ba6 $1 {[%emt 0:00:02] CPLX 2.7} 17. Rfc1 {[%emt 0:03:21] CPLX 2.8} Rac8 {[%emt 0:00:54] CPLX 2.8} 18. Qb2 {[%emt 0:00:31] BESTDEEP} h6 {[%emt 0:01:32] RELBLUND 55 (Nd7-b8) (=7)} (18... Nb8 $11) 19. h3 {[%emt 0:01:46] CPLX 2.7 41 (Qb2-a3) (=4)} (19. Qa3 $5 {[%cal Rd2b3]} Bb7 20. Bf1 dxc4 21. Nxc4 $16) 19... Nb8 {[%emt 0:04:02] [#] BESTDEEP} 20. Qa3 $146 {[%emt 0:04:25] Threatens to win with Nb3. BESTDEEP} ({Predecessor:} 20. Kh1 Red8 21. Qa2 dxc4 22. Nxc4 Qd5 23. Bf3 Bxc4 24. Bxd5 Bxa2 25. Bxa2 Nc6 26. g3 {1-0 (53) Figlio,G (2397)-De la Calle,I (2329) ICCF email 2011}) 20... Nc6 {[%emt 0:00:46] CPLX 2.9} 21. Bf3 {[%emt 0:00:04] BESTDEEP} (21. Bf1 {is more complex.} Nxd4 22. Bxd4 Qxd2 23. Bxf6 gxf6 24. Rc3) 21... Nxd4 $2 {[%emt 0:00:56] RELBLUND 166 (Qa5-b4) (=18)} 22. Bxd4 $18 {[%emt 0:00:06] Hoping for Nb3. This bishop pair is nice. RECAPT} Qxd2 {[%emt 0:00:01] EASY} 23. Bxf6 {[%emt 0:00:14] EASY} gxf6 {[%emt 0:00:03] RECAPT} 24. Bxd5 {[%emt 0:00:08] Black must now prevent a5. CPLX 3.4} Rc5 {[%emt 0:01:01] [#] BESTDEEP} 25. Rd1 {[%emt 0:03:00] CPLX 4.6 134 (a4-a5) (=11)} (25. a5 $1 $18 {[%cal Ra5b6] is the precise move to win.} Rxa5 26. Qg3+ Qg5 27. Qc7) 25... Qf4 $16 {[%emt 0:00:33] CPLX 4.9=>BLUNDERREACT} 26. g3 {[%emt 0:00:05] RELBLUND 64 (Qa3-b2) (=14)} (26. Qb2 $16) 26... Qf5 {[%emt 0:00:43] [#] RELBLUND 85 (Qf4-c7) (=18)} (26... Qc7 $11) 27. Rd4 $1 {[%emt 0:00:06] DEEPSTRONG=>BLUNDERREACT} (27. g4 $6 Qf4 $11) 27... Bc8 {[%emt 0:03:13] CPLX 3.6 31 (h6-h5) (=18)} 28. Rf4 {[%emt 0:00:26] MISS-Rd4-g4 75 (Rd4-g4) (=17)} (28. Rg4+ $16 Kf8 29. a5) 28... Qe5 {[%emt 0:00:02] CPLX 3.8 44 (Qf5-g6) (=20)} 29. Rd1 {[%emt 0:00:35] MISS-Rf4-e4 73 (Rf4-e4) (=19)} (29. Re4 $16 Qxe4 30. Bxe4 Rxe4 31. Qf3) 29... Kg7 {[%emt 0:00:16] MISS-Bc8xh3 33 (Bc8xh3) (=20)} 30. Qf3 {[%emt 0:01:05] CPLX 3.4 19 (Rd1-d3) (=19)} f5 {[%emt 0:00:05] CPLX 3.7 46 (Qe5-e2) (=21)} (30... Qe2 $11) 31. Qh5 {[%emt 0:00:25] CPLX 3.2 43 (g3-g4) (=20)} (31. g4 $5 {[%cal Rg4f5]}) 31... Re7 {[%emt 0:00:03] CPLX 4.2 18 (Rc5-c7) (=21)} 32. Rd3 {[%emt 0:00:13] CPLX 4.1 12 (Rd1-d4) (=20)} ({Much worse is} 32. Rh4 Qf6 $11) 32... Qf6 {[%emt 0:00:07] BESTDEEP} 33. Qd1 {[%emt 0:00:29] CPLX 4.6} Bd7 {[%emt 0:00:06] CPLX 2.9 14 (Bc8-e6) (=20)} 34. g4 {[%emt 0:00:20] CPLX 2.9 21 (Kg1-h2) (=19)} Qg5 {[%emt 0:00:08] CPLX 3.2 22 (Rc5-c8) (=20)} 35. Qd2 {[%emt 0:00:10] RELBLUND 51 (Rd3-f3) (=21)} ({Better is} 35. Rdf3 $14) 35... fxg4 $11 {[%emt 0:00:09] DEEPSTRONG} 36. Rg3 {[%emt 0:00:02] MISS-h3xg4 0 (h3xg4) (=20)} Qe5 {[%emt 0:00:33] CPLX 4.6} 37. Kh2 {[%emt 0:00:19][%cal Od5f7] CPLX 4.0 8 (Kg1-g2) (=19)} h5 {[%emt 0:00:08] CPLX 3.9} 38. hxg4 {[%emt 0:00:03] BESTDEEP} hxg4 {[%emt 0:00:02] RECAPT} 39. Kg2 {[%emt 0:00:14] BESTDEEP} f5 {[%emt 0:00:04] CPLX 4.1 0 (Rc5-c8) (=17)} 40. Rd4 {[%emt 0:00:13] And now Qg5+ would win. MISS-Rg3-e3 0 (Rg3-e3) (=17)} Be8 $2 {[%emt 0:00:10][%mdl 8192] RELBLUND 400 (Kg7-f8) (=29)} (40... Kf8 $11) 41. Qg5+ {[%emt 0:00:05] EASY} Bg6 {[%emt 0:00:01] BEVAL} 42. Re3 {[%emt 0:00:02][%mdl 64] Skewer. BEVAL} Qxd4 {[%emt 0:00:10] RELBLUND 400 (Qe5xe3) (=39)} 43. Rxe7+ {[%emt 0:00:09] EASY. White mates.} Kf8 {[%emt 0:00:01] EASY} 44. Rd7 {[%emt 0:00:14][%csl Gd7][%cal Rg5e7] CPLX 5.6 2 (Re7xa7) (=16)} Rxd5 {[%emt 0:00:07] RELBLUND 5 (Qd4-g7) (=37)} 45. Qe7+ {[%emt 0:00:04] CPLX 6.8} (45. cxd5 Qe4+ 46. Kf1 Qb1+ 47. Ke2 (47. Kg2 Qe4+ 48. Kf1 Qb1+ 49. Ke2 Qa2+ 50. Qd2 Qxa4 $18) 47... Qc2+ 48. Ke1 Qb1+ 49. Ke2 Qc2+ 50. Qd2 Qe4+ 51. Qe3 f4 52. Qxe4 Bxe4 53. Rxa7 Bxd5 $18) 45... Kg8 {[%emt 0:00:08] LEGAL} 46. Qd8+ {[%emt 0:00:01] Weighted Error Value: White=0.19 (very precise) /Black=0.47} 1-0